fUSD/lending_fUSD_20260702
["ID","MTS","AMOUNT","RATE_DAILY","PERIOD"]
[426846663,1782947441000,-2007.588086,0.00027397,2]
[426846690,1782947441000,-1850.956704,0.00027397,2]
[426846692,1782947441000,-4738.251208,0.00027397,2]
[426846694,1782947441000,-1850.956704,0.00027397,2]
[426846695,1782947441000,-4738.251208,0.00027397,2]
[426846696,1782947441000,-181.617498,0.00027397,2]
[426846697,1782947441000,-1551.808542,0.00027397,2]
[426846699,1782947441000,-4738.251208,0.00027397,2]
[426846703,1782947441000,-4738.251208,0.00027397,2]
[426846701,1782947441000,-1551.808542,0.00027397,2]
[426846705,1782947441000,-1551.808542,0.00027397,2]
[426846702,1782947441000,-1850.956704,0.00027397,2]
[426846691,1782947441000,-1551.808542,0.00027397,2]
[426846704,1782947441000,-181.617498,0.00027397,2]
[426846707,1782947441000,-4738.251208,0.00027397,2]
[426846706,1782947441000,-1850.956704,0.00027397,2]
[426846709,1782947441000,-181.617498,0.00027397,2]
[426846708,1782947441000,-1551.808542,0.00027397,2]
[426846710,1782947441000,-1850.956704,0.00027397,2]
[426846711,1782947441000,-4738.251208,0.00027397,2]
[426846712,1782947441000,-1551.808542,0.00027397,2]
[426846714,1782947441000,-1850.956704,0.00027397,2]
[426846713,1782947441000,-181.617498,0.00027397,2]
[426846716,1782947441000,-1551.808542,0.00027397,2]
[426846664,1782947441000,-2007.588086,0.00027397,2]
[426846700,1782947441000,-181.617498,0.00027397,2]
[426846689,1782947441000,-181.617498,0.00027397,2]
[426846698,1782947441000,-1850.956704,0.00027397,2]
[426846687,1782947441000,-1551.808542,0.00027397,2]
[426846665,1782947441000,-2007.588086,0.00027397,2]
[426846666,1782947441000,-2007.588079,0.00027397,2]
[426846668,1782947441000,-4738.251208,0.00027397,2]
[426846667,1782947441000,-1551.808542,0.00027397,2]
[426846693,1782947441000,-181.617498,0.00027397,2]
[426846671,1782947441000,-4738.251208,0.00027397,2]
[426846670,1782947441000,-4738.251208,0.00027397,2]
[426846672,1782947441000,-1551.808542,0.00027397,2]
[426846673,1782947441000,-4738.251208,0.00027397,2]
[426846674,1782947441000,-181.617498,0.00027397,2]
[426846676,1782947441000,-4738.251208,0.00027397,2]
[426846675,1782947441000,-1551.808542,0.00027397,2]
[426846669,1782947441000,-1551.808542,0.00027397,2]
[426846680,1782947441000,-181.617498,0.00027397,2]
[426846678,1782947441000,-1551.808542,0.00027397,2]
[426846682,1782947441000,-4738.251208,0.00027397,2]
[426846685,1782947441000,-4738.251208,0.00027397,2]
[426846684,1782947441000,-1551.808542,0.00027397,2]
[426846683,1782947441000,-181.617498,0.00027397,2]
[426846686,1782947441000,-181.617498,0.00027397,2]
[426846681,1782947441000,-1551.808542,0.00027397,2]
[426846715,1782947441000,-4738.251208,0.00027397,2]
[426846677,1782947441000,-181.617498,0.00027397,2]
[426846679,1782947441000,-4738.251208,0.00027397,2]
[426846688,1782947441000,-4738.251208,0.00027397,2]
[426846726,1782947442000,-1850.956704,0.00027397,2]
[426846735,1782947442000,-1850.956704,0.00027397,2]
[426846732,1782947442000,-1850.956704,0.00027397,2]
[426846730,1782947442000,-4738.251203,0.00027397,2]
[426846729,1782947442000,-181.617498,0.00027397,2]
[426846728,1782947442000,-1551.808542,0.00027397,2]
[426846727,1782947442000,-4738.251208,0.00027397,2]
[426846721,1782947442000,-181.617498,0.00027397,2]
[426846725,1782947442000,-181.617498,0.00027397,2]
[426846724,1782947442000,-1551.808542,0.00027397,2]
[426846720,1782947442000,-1551.808542,0.00027397,2]
[426846722,1782947442000,-1850.956704,0.00027397,2]
[426846719,1782947442000,-4738.251208,0.00027397,2]
[426846718,1782947442000,-1850.956704,0.00027397,2]
[426846717,1782947442000,-181.617498,0.00027397,2]
[426846736,1782947442000,-181.617498,0.00027397,2]
[426846723,1782947442000,-4738.251208,0.00027397,2]
[426846731,1782947442000,-1551.808542,0.00027397,2]
[426846737,1782947442000,-181.617498,0.00027397,2]
[426846733,1782947442000,-181.617498,0.00027397,2]
[426846734,1782947442000,-1551.808535,0.00027397,2]
[426846754,1782947442000,-362.88061159,0.00027397,2]
[426846752,1782947442000,-1698.42201926,0.00027397,2]
[426846753,1782947442000,-1620.96733142,0.00027397,2]
[426846750,1782947442000,-211.20751326,0.00027397,2]
[426846751,1782947442000,-152.53468674,0.00027397,2]
[426846747,1782947442000,-187.15343242,0.00027297,5]
[426846748,1782947442000,-296.24659817,0.00027397,2]
[426846749,1782947442000,-1639.74919074,0.00027397,2]
[426846745,1782947442000,-716.266932,0.00027397,2]
[426846742,1782947442000,-1850.956704,0.00027397,2]
[426846743,1782947442000,-1850.956704,0.00027397,2]
[426846744,1782947442000,-300.22970635,0.00027397,2]
[426846740,1782947442000,-1850.956704,0.00027397,2]
[426846741,1782947442000,-1850.956704,0.00027397,2]
[426846739,1782947442000,-181.617502,0.00027397,2]
[426846738,1782947442000,-1850.956704,0.00027397,2]
[426846746,1782947442000,-538.21346748,0.00027397,2]
[426846773,1782947446000,-2391.163508,0.00027397,2]
[426846768,1782947446000,-1500.0,0.00027397,2]
[426846769,1782947446000,-369.7009,0.00027397,2]
[426846771,1782947446000,-2391.163508,0.00027397,2]
[426846770,1782947446000,-37.61466499,0.00027397,2]
[426846772,1782947446000,-2391.163508,0.00027397,2]
[426846774,1782947446000,-2391.163508,0.00027397,2]
[426846775,1782947446000,-2391.163508,0.00027397,2]
[426846776,1782947446000,-2391.163508,0.00027397,2]
[426846777,1782947446000,-2391.163508,0.00027397,2]
[426846778,1782947446000,-1396.61882862,0.00027397,2]
[426846779,1782947502000,1000.0,0.00030136,120]
[426846783,1782947824000,174.4,0.00025852,120]
[426846784,1782947830000,93510.2403,0.00025424,120]
[426846816,1782948632000,-150.0,0.00024658,7]
[426846818,1782948632000,-150.0,0.00024658,7]
[426846809,1782948632000,-304.0,0.00024,2]
[426846815,1782948632000,-151.68617823,0.00024658,7]
[426846812,1782948632000,-150.0,0.00024658,7]
[426846813,1782948632000,-296.29301606,0.00024658,7]
[426846833,1782948632000,-150.09,0.00025,2]
[426846820,1782948632000,-172.57,0.00024658,2]
[426846829,1782948632000,-150.0,0.00024868,7]
[426846811,1782948632000,-611.0,0.00024373,2]
[426846831,1782948632000,-351.55,0.00025,2]
[426846835,1782948632000,-158.0,0.00025,2]
[426846837,1782948632000,-228.0,0.00025,2]
[426846817,1782948632000,-150.0,0.00024658,7]
[426846814,1782948632000,-150.0,0.00024658,7]
[426846819,1782948632000,-183.36,0.00024658,2]
[426846807,1782948632000,-158.0,0.00024,2]
[426846793,1782948632000,-244.15,0.000176,2]
[426846794,1782948632000,-244.15,0.000176,2]
[426846795,1782948632000,-244.15,0.000176,2]
[426846796,1782948632000,-244.15,0.000176,2]
[426846797,1782948632000,-547.83,0.000176,2]
[426846806,1782948632000,-158.97999468,0.0002341,2]
[426846810,1782948632000,-235.0,0.00024,2]
[426846799,1782948632000,-84.35290505,0.000179,2]
[426846800,1782948632000,-216.66345934,0.00021043,2]
[426846805,1782948632000,-194.52077816,0.0002341,2]
[426846801,1782948632000,-385.055,0.00021099,12]
[426846804,1782948632000,-191.08323767,0.0002341,2]
[426846802,1782948632000,-160.0,0.00023174,2]
[426846803,1782948632000,-179.33844208,0.0002341,2]
[426846798,1782948632000,-126.25415055,0.000179,2]
[426846821,1782948632000,-172.46,0.00024658,2]
[426846808,1782948632000,-228.0,0.00024,2]
[426846823,1782948632000,-382.16647533,0.00024659,2]
[426846865,1782948632000,-153.63894032,0.0002549,2]
[426846864,1782948632000,-500.0,0.0002549,2]
[426846863,1782948632000,-500.0,0.0002549,2]
[426846866,1782948632000,-346.36105968,0.0002549,2]
[426846869,1782948632000,-397.1697678,0.0002549,2]
[426846867,1782948632000,-527.00656241,0.0002549,2]
[426846862,1782948632000,-316.41789468,0.00025405,2]
[426846868,1782948632000,-102.8302322,0.0002549,2]
[426846874,1782948632000,-390.88217684,0.0002549,2]
[426846875,1782948632000,-375.76620688,0.0002549,2]
[426846872,1782948632000,-18.99558259,0.0002549,2]
[426846876,1782948632000,-500.0,0.0002549,2]
[426846873,1782948632000,-500.0,0.0002549,2]
[426846877,1782948632000,-500.0,0.0002549,2]
[426846871,1782948632000,-481.00441741,0.0002549,2]
[426846861,1782948632000,-683.58210532,0.00025405,2]
[426846822,1782948632000,-358.67688415,0.00024659,2]
[426846859,1782948632000,-500.0,0.00025342,2]
[426846878,1782948632000,-8.46114859,0.0002549,2]
[426846825,1782948632000,-389.04155632,0.00024659,2]
[426846839,1782948632000,-304.0,0.00025,2]
[426846841,1782948632000,-235.0,0.00025,2]
[426846845,1782948632000,-167.76,0.00025053,2]
[426846843,1782948632000,-611.0,0.00025,2]
[426846847,1782948632000,-150.0,0.00025079,7]
[426846827,1782948632000,-317.95998935,0.00024659,2]
[426846858,1782948632000,-150.52305308,0.0002529,2]
[426846855,1782948632000,-52.8969584,0.0002529,7]
[426846851,1782948632000,-4637.1788584,0.00025162,2]
[426846857,1782948632000,-97.1030416,0.0002529,7]
[426846849,1782948632000,-1148.93,0.00025105,2]
[426846870,1782948632000,-500.0,0.0002549,2]
[426846860,1782948632000,-150.0,0.00025405,2]
[426846853,1782948632000,-362.8211416,0.00025162,2]
[426846896,1782948638000,-500.0,0.0002549,2]
[426846891,1782948638000,-500.0,0.0002549,2]
[426846898,1782948638000,-500.0,0.0002549,2]
[426846903,1782948638000,-538.01532623,0.00025492,2]
[426846900,1782948638000,-500.0,0.0002549,2]
[426846905,1782948638000,-583.56233448,0.00025492,2]
[426846902,1782948638000,-500.0,0.0002549,2]
[426846909,1782948638000,-150.0,0.00025571,7]
[426846904,1782948638000,-573.249713,0.00025492,2]
[426846894,1782948638000,-500.0,0.0002549,2]
[426846901,1782948638000,-500.0,0.0002549,2]
[426846895,1782948638000,-500.0,0.0002549,2]
[426846885,1782948638000,-500.0,0.0002549,2]
[426846892,1782948638000,-500.0,0.0002549,2]
[426846890,1782948638000,-500.0,0.0002549,2]
[426846889,1782948638000,-500.0,0.0002549,2]
[426846888,1782948638000,-264.06209815,0.0002549,2]
[426846887,1782948638000,-500.0,0.0002549,2]
[426846910,1782948638000,-150.0,0.00025711,7]
[426846886,1782948638000,-500.0,0.0002549,2]
[426846882,1782948638000,-172.65,0.00024658,2]
[426846883,1782948638000,-491.53885141,0.0002549,2]
[426846884,1782948638000,-500.0,0.0002549,2]
[426846881,1782948638000,-216.0,0.00023531,2]
[426846893,1782948638000,-500.0,0.0002549,2]
[426846907,1782948638000,-150.0,0.00025501,7]
[426846897,1782948638000,-500.0,0.0002549,2]
[426846908,1782948638000,-1816.0,0.00025524,2]
[426846906,1782948638000,-476.93998403,0.00025492,2]
[426846935,1782948638000,-1018.0,0.00026298,5]
[426846934,1782948638000,-500.0,0.00026138,2]
[426846933,1782948638000,-150.0,0.00026133,7]
[426846932,1782948638000,-1032.0,0.00026059,5]
[426846928,1782948638000,-372.10442304,0.00026047,2]
[426846931,1782948638000,-211.5823685,0.00026047,2]
[426846930,1782948638000,-234.65907569,0.00026047,2]
[426846924,1782948638000,-717.3537683,0.00026047,2]
[426846927,1782948638000,-635.9199787,0.00026047,2]
[426846926,1782948638000,-778.08311264,0.00026047,2]
[426846925,1782948638000,-764.33295067,0.00026047,2]
[426846929,1782948638000,-370.49468421,0.00026047,2]
[426846899,1782948638000,-500.0,0.0002549,2]
[426846921,1782948638000,-150.0,0.00026027,7]
[426846923,1782948638000,-150.0,0.00026027,7]
[426846911,1782948638000,-174.08503679,0.00025753,7]
[426846914,1782948638000,-158.0,0.00026,2]
[426846915,1782948638000,-228.0,0.00026,2]
[426846920,1782948638000,-668.0,0.0002602,5]
[426846922,1782948638000,-150.0,0.00026027,7]
[426846918,1782948638000,-1716.838,0.0002602,12]
[426846919,1782948638000,-154.917,0.0002602,12]
[426846913,1782948638000,-150.0,0.00025922,7]
[426846916,1782948638000,-304.0,0.00026,2]
[426846917,1782948638000,-235.0,0.00026,2]
[426846912,1782948638000,-191.23,0.00025881,2]
[426846996,1782948639000,-500.0,0.00027123,2]
[426846979,1782948639000,-156.37642752,0.00027023,2]
[426846981,1782948639000,-150.0,0.00027123,2]
[426846983,1782948639000,-150.0,0.00027123,2]
[426846990,1782948639000,-500.0,0.00027123,2]
[426846986,1782948639000,-174.00201412,0.00027123,2]
[426846992,1782948639000,-500.0,0.00027123,2]
[426846994,1782948639000,-500.0,0.00027123,2]
[426846988,1782948639000,-500.0,0.00027123,2]
[426847006,1782948639000,-500.0,0.00027123,2]
[426847000,1782948639000,-500.0,0.00027123,2]
[426847011,1782948639000,-150.0,0.00027123,2]
[426847014,1782948639000,-200.32444959,0.00027123,2]
[426847007,1782948639000,-182.29651564,0.00027123,2]
[426846968,1782948639000,-150.0,0.00026976,7]
[426847002,1782948639000,-500.0,0.00027123,2]
[426847004,1782948639000,-500.0,0.00027123,2]
[426847009,1782948639000,-150.0,0.00027123,2]
[426847018,1782948639000,-500.0,0.00027123,2]
[426847022,1782948639000,-435.41645493,0.00027123,2]
[426847024,1782948639000,-150.0,0.00027123,2]
[426846998,1782948639000,-500.0,0.00027123,2]
[426846974,1782948639000,-304.0,0.00027,2]
[426846961,1782948639000,-173.51198,0.00026849,14]
[426846972,1782948639000,-228.0,0.00027,2]
[426847020,1782948639000,-500.0,0.00027123,2]
[426846936,1782948639000,-150.0,0.00026344,7]
[426846937,1782948639000,-172.46,0.00026484,7]
[426846939,1782948639000,-216.0,0.00026531,2]
[426846938,1782948639000,-150.0,0.00026484,7]
[426846940,1782948639000,-150.0,0.00026554,7]
[426846941,1782948639000,-985.32199838,0.00026575,2]
[426846945,1782948639000,-794.89997338,0.00026602,2]
[426846942,1782948639000,-896.69221038,0.00026602,2]
[426846943,1782948639000,-955.41618833,0.00026602,2]
[426846977,1782948639000,-235.0,0.00027,2]
[426846944,1782948639000,-972.60389081,0.00026602,2]
[426846949,1782948639000,-500.0,0.00026848,2]
[426846955,1782948639000,-218.46929076,0.00026848,2]
[426846948,1782948639000,-500.0,0.00026848,2]
[426846953,1782948639000,-407.14392858,0.00026848,2]
[426846947,1782948639000,-248.54638841,0.00026848,2]
[426846957,1782948639000,-581.98151435,0.00026848,2]
[426846959,1782948639000,-185.00075,0.00026848,2]
[426846965,1782948639000,-684.0,0.00026952,5]
[426846963,1782948639000,-1819.0,0.00026911,2]
[426846970,1782948639000,-158.0,0.00027,2]
[426846946,1782948639000,-150.0,0.00026765,7]
[426846951,1782948639000,-183.04689647,0.00026848,2]
[426847026,1782948639000,-150.0,0.00027123,2]
[426847034,1782948639000,-500.0,0.00027123,2]
[426847077,1782948639000,-500.0,0.00027123,2]
[426847081,1782948639000,-500.0,0.00027123,2]
[426847085,1782948639000,-500.0,0.00027123,2]
[426847090,1782948639000,-235.59283424,0.00027123,2]
[426847096,1782948639000,-548.85954718,0.00027123,2]
[426847094,1782948639000,-500.0,0.00027123,2]
[426847100,1782948639000,-500.0,0.00027123,2]
[426847098,1782948639000,-500.0,0.00027123,2]
[426847115,1782948639000,-500.0,0.00027123,2]
[426847102,1782948639000,-500.0,0.00027123,2]
[426847087,1782948639000,-264.40716576,0.00027123,2]
[426847111,1782948639000,-500.0,0.00027123,2]
[426847107,1782948639000,-478.37766143,0.00027123,2]
[426847109,1782948639000,-500.0,0.00027123,2]
[426847113,1782948639000,-500.0,0.00027123,2]
[426847120,1782948639000,-500.0,0.00027123,2]
[426847116,1782948639000,-500.0,0.00027123,2]
[426847118,1782948639000,-169.23720547,0.00027123,2]
[426847117,1782948639000,-330.76279453,0.00027123,2]
[426847119,1782948639000,-500.0,0.00027123,2]
[426847121,1782948639000,-292.85395753,0.00027123,2]
[426847016,1782948639000,-500.0,0.00027123,2]
[426847105,1782948639000,-21.62233857,0.00027123,2]
[426847079,1782948639000,-500.0,0.00027123,2]
[426847092,1782948639000,-500.0,0.00027123,2]
[426847071,1782948639000,-254.48877466,0.00027123,2]
[426847028,1782948639000,-190.07698583,0.00027123,2]
[426847032,1782948639000,-500.0,0.00027123,2]
[426847036,1782948639000,-501.89331563,0.00027123,2]
[426847030,1782948639000,-500.0,0.00027123,2]
[426847039,1782948639000,-500.0,0.00027123,2]
[426847083,1782948639000,-500.0,0.00027123,2]
[426847043,1782948639000,-500.0,0.00027123,2]
[426847047,1782948639000,-500.0,0.00027123,2]
[426847045,1782948639000,-500.0,0.00027123,2]
[426847063,1782948639000,-500.0,0.00027123,2]
[426847049,1782948639000,-500.0,0.00027123,2]
[426847041,1782948639000,-606.10651734,0.00027123,2]
[426847061,1782948639000,-500.0,0.00027123,2]
[426847055,1782948639000,-500.0,0.00027123,2]
[426847051,1782948639000,-500.0,0.00027123,2]
[426847057,1782948639000,-500.0,0.00027123,2]
[426847059,1782948639000,-500.0,0.00027123,2]
[426847065,1782948639000,-500.0,0.00027123,2]
[426847069,1782948639000,-500.0,0.00027123,2]
[426847067,1782948639000,-500.0,0.00027123,2]
[426847075,1782948639000,-500.0,0.00027123,2]
[426847053,1782948639000,-500.0,0.00027123,2]
[426847073,1782948639000,-500.0,0.00027123,2]
[426847132,1782948640000,-500.0,0.00027123,2]
[426847131,1782948640000,-158.75300677,0.00027123,2]
[426847133,1782948640000,-500.0,0.00027123,2]
[426847128,1782948640000,-500.0,0.00027123,2]
[426847130,1782948640000,-55.32655107,0.00027123,2]
[426847124,1782948640000,-275.27263528,0.00027123,2]
[426847129,1782948640000,-500.0,0.00027123,2]
[426847127,1782948640000,-69.67263528,0.00027123,2]
[426847126,1782948640000,-430.32736472,0.00027123,2]
[426847122,1782948640000,-207.14604247,0.00027123,2]
[426847123,1782948640000,-224.72736472,0.00027123,2]
[426847136,1782948640000,-500.0,0.00027123,2]
[426847125,1782948640000,-500.0,0.00027123,2]
[426847135,1782948640000,-500.0,0.00027123,2]
[426847134,1782948640000,-150.0,0.00027123,2]
[426847143,1782948640000,-500.0,0.00027123,2]
[426847139,1782948640000,-500.0,0.00027123,2]
[426847149,1782948640000,-553.07650208,0.00027123,2]
[426847151,1782948640000,-695.0,0.00027123,2]
[426847148,1782948640000,-695.0,0.00027123,2]
[426847147,1782948640000,-695.0,0.00027123,2]
[426847145,1782948640000,-51.1889608,0.00027123,2]
[426847150,1782948640000,-141.92349792,0.00027123,2]
[426847144,1782948640000,-448.8110392,0.00027123,2]
[426847141,1782948640000,-500.0,0.00027123,2]
[426847138,1782948640000,-500.0,0.00027123,2]
[426847142,1782948640000,-500.0,0.00027123,2]
[426847137,1782948640000,-411.51008176,0.00027123,2]
[426847146,1782948640000,-505.01643712,0.00027123,2]
[426847140,1782948640000,-500.0,0.00027123,2]
[426847199,1782948641000,-958.0,0.00027123,2]
[426847201,1782948641000,-958.0,0.00027123,2]
[426847197,1782948641000,-429.0,0.00027123,2]
[426847198,1782948641000,-695.0,0.00027123,2]
[426847195,1782948641000,-429.0,0.00027123,2]
[426847182,1782948641000,-429.0,0.00027123,2]
[426847193,1782948641000,-429.0,0.00027123,2]
[426847186,1782948641000,-429.0,0.00027123,2]
[426847181,1782948641000,-278.53394674,0.00027123,2]
[426847190,1782948641000,-429.0,0.00027123,2]
[426847204,1782948641000,-429.0,0.00027123,2]
[426847184,1782948641000,-429.0,0.00027123,2]
[426847196,1782948641000,-958.0,0.00027123,2]
[426847209,1782948641000,-958.0,0.00027123,2]
[426847200,1782948641000,-429.0,0.00027123,2]
[426847205,1782948641000,-958.0,0.00027123,2]
[426847203,1782948641000,-958.0,0.00027123,2]
[426847206,1782948641000,-429.0,0.00027123,2]
[426847207,1782948641000,-958.0,0.00027123,2]
[426847194,1782948641000,-958.0,0.00027123,2]
[426847210,1782948641000,-429.0,0.00027123,2]
[426847214,1782948641000,-429.0,0.00027123,2]
[426847208,1782948641000,-429.0,0.00027123,2]
[426847216,1782948641000,-958.0,0.00027123,2]
[426847217,1782948641000,-695.0,0.00027123,2]
[426847211,1782948641000,-958.0,0.00027123,2]
[426847218,1782948641000,-429.0,0.00027123,2]
[426847202,1782948641000,-429.0,0.00027123,2]
[426847188,1782948641000,-429.0,0.00027123,2]
[426847170,1782948641000,-200.73228355,0.00027123,2]
[426847179,1782948641000,-500.0,0.00027123,2]
[426847215,1782948641000,-958.0,0.00027123,2]
[426847153,1782948641000,-695.0,0.00027123,2]
[426847163,1782948641000,-150.0,0.00027123,2]
[426847154,1782948641000,-695.0,0.00027123,2]
[426847152,1782948641000,-695.0,0.00027123,2]
[426847164,1782948641000,-500.0,0.00027123,2]
[426847156,1782948641000,-695.0,0.00027123,2]
[426847155,1782948641000,-500.0,0.00027123,2]
[426847162,1782948641000,-695.0,0.00027123,2]
[426847161,1782948641000,-500.0,0.00027123,2]
[426847160,1782948641000,-150.0,0.00027123,2]
[426847159,1782948641000,-695.0,0.00027123,2]
[426847157,1782948641000,-695.0,0.00027123,2]
[426847158,1782948641000,-500.0,0.00027123,2]
[426847173,1782948641000,-500.0,0.00027123,2]
[426847174,1782948641000,-695.0,0.00027123,2]
[426847166,1782948641000,-201.06849621,0.00027123,2]
[426847175,1782948641000,-500.0,0.00027123,2]
[426847167,1782948641000,-695.0,0.00027123,2]
[426847172,1782948641000,-695.0,0.00027123,2]
[426847169,1782948641000,-695.0,0.00027123,2]
[426847171,1782948641000,-695.0,0.00027123,2]
[426847168,1782948641000,-500.0,0.00027123,2]
[426847177,1782948641000,-695.0,0.00027123,2]
[426847176,1782948641000,-621.11405207,0.00027123,2]
[426847180,1782948641000,-695.0,0.00027123,2]
[426847178,1782948641000,-500.0,0.00027123,2]
[426847192,1782948641000,-958.0,0.00027123,2]
[426847212,1782948641000,-429.0,0.00027123,2]
[426847165,1782948641000,-695.0,0.00027123,2]
[426847220,1782948641000,-500.0,0.00027123,2]
[426847252,1782948641000,-500.0,0.00027123,2]
[426847249,1782948641000,-429.0,0.00027123,2]
[426847251,1782948641000,-958.0,0.00027123,2]
[426847256,1782948641000,-429.0,0.00027123,2]
[426847276,1782948641000,-500.0,0.00027123,2]
[426847266,1782948641000,-501.71510371,0.00027123,2]
[426847267,1782948641000,-500.0,0.00027123,2]
[426847255,1782948641000,-706.00865226,0.00027123,2]
[426847258,1782948641000,-500.0,0.00027123,2]
[426847262,1782948641000,-500.0,0.00027123,2]
[426847257,1782948641000,-500.0,0.00027123,2]
[426847264,1782948641000,-500.0,0.00027123,2]
[426847260,1782948641000,-500.0,0.00027123,2]
[426847259,1782948641000,-500.0,0.00027123,2]
[426847261,1782948641000,-958.0,0.00027123,2]
[426847263,1782948641000,-500.0,0.00027123,2]
[426847265,1782948641000,-500.0,0.00027123,2]
[426847275,1782948641000,-500.0,0.00027123,2]
[426847273,1782948641000,-500.0,0.00027123,2]
[426847268,1782948641000,-500.0,0.00027123,2]
[426847269,1782948641000,-500.0,0.00027123,2]
[426847277,1782948641000,-429.0,0.00027123,2]
[426847271,1782948641000,-500.0,0.00027123,2]
[426847270,1782948641000,-500.0,0.00027123,2]
[426847274,1782948641000,-500.0,0.00027123,2]
[426847278,1782948641000,-500.0,0.00027123,2]
[426847213,1782948641000,-958.0,0.00027123,2]
[426847246,1782948641000,-958.0,0.00027123,2]
[426847253,1782948641000,-500.0,0.00027123,2]
[426847272,1782948641000,-500.0,0.00027123,2]
[426847245,1782948641000,-500.0,0.00027123,2]
[426847247,1782948641000,-695.0,0.00027123,2]
[426847221,1782948641000,-958.0,0.00027123,2]
[426847230,1782948641000,-500.0,0.00027123,2]
[426847219,1782948641000,-958.0,0.00027123,2]
[426847222,1782948641000,-500.0,0.00027123,2]
[426847228,1782948641000,-500.0,0.00027123,2]
[426847224,1782948641000,-500.0,0.00027123,2]
[426847229,1782948641000,-500.0,0.00027123,2]
[426847227,1782948641000,-958.0,0.00027123,2]
[426847226,1782948641000,-429.0,0.00027123,2]
[426847225,1782948641000,-500.0,0.00027123,2]
[426847232,1782948641000,-958.0,0.00027123,2]
[426847231,1782948641000,-500.0,0.00027123,2]
[426847233,1782948641000,-500.0,0.00027123,2]
[426847223,1782948641000,-958.0,0.00027123,2]
[426847236,1782948641000,-500.0,0.00027123,2]
[426847239,1782948641000,-500.0,0.00027123,2]
[426847254,1782948641000,-500.0,0.00027123,2]
[426847244,1782948641000,-429.0,0.00027123,2]
[426847243,1782948641000,-500.0,0.00027123,2]
[426847242,1782948641000,-500.0,0.00027123,2]
[426847248,1782948641000,-466.73348937,0.00027123,2]
[426847235,1782948641000,-695.0,0.00027123,2]
[426847237,1782948641000,-500.0,0.00027123,2]
[426847241,1782948641000,-500.0,0.00027123,2]
[426847238,1782948641000,-500.0,0.00027123,2]
[426847250,1782948641000,-500.0,0.00027123,2]
[426847234,1782948641000,-429.0,0.00027123,2]
[426847240,1782948641000,-958.0,0.00027123,2]
[426847318,1782948642000,-500.0,0.00027396,2]
[426847309,1782948642000,-2000.0,0.00027297,2]
[426847308,1782948642000,-13036.60126839,0.00027297,2]
[426847311,1782948642000,-500.0,0.0002737,2]
[426847316,1782948642000,-500.0,0.00027396,2]
[426847315,1782948642000,-1106.21,0.00027395,2]
[426847313,1782948642000,-665.0,0.00027386,5]
[426847314,1782948642000,-2932.03,0.00027386,2]
[426847317,1782948642000,-500.0,0.00027396,2]
[426847310,1782948642000,-150.0,0.000273,10]
[426847312,1782948642000,-665.0,0.00027374,5]
[426847325,1782948642000,-500.0,0.00027396,2]
[426847320,1782948642000,-500.0,0.00027396,2]
[426847322,1782948642000,-500.0,0.00027396,2]
[426847321,1782948642000,-500.0,0.00027396,2]
[426847323,1782948642000,-500.0,0.00027396,2]
[426847324,1782948642000,-500.0,0.00027396,2]
[426847327,1782948642000,-500.0,0.00027396,2]